[Event "XII Cracow ICC-A 2024"]
[Site "Krakow"]
[Date "2024.06.25"]
[Round "5.11"]
[White "Chatalbashev, Boris"]
[Black "Mahitosh Dey"]
[Result "0-1"]
[ECO "A05"]
[WhiteElo "2483"]
[BlackElo "2232"]
[Annotator "TA"]
[PlyCount "128"]
[EventDate "2024.06.20"]
[EventType "swiss"]
[EventCountry "POL"]
[SourceTitle "playchess.com"]
[Source "ChessBase"]
[SourceQuality "1"]
[TimeControl "40/5400+30:1800+30"]

{[%evp 22,128,5,-37,-18,-41,-30,-34,-26,-23,0,-14,0,0,-8,-20,0,0,0,0,-4,-11,-8,-14,0,0,0,-29,-40,-34,-31,-30,-16,-27,0,-90,-83,-105,-91,-154,-68,-72,-72,-64,-45,-47,-62,-206,-226,-189,-168,-153,-150,-168,-47,-168,-156,-162,-125,-183,-181,-793,-785,-802,-729,-847,-828,-821,-819,-926,-715,-810,-910,-908,-873,-862,-320,-764,-755,-739,-663,-1630,-1412,-868,-752,-29996,60,60,29971,71,29976,0,0,0,0,0,0,0,0,0,0,0,0,0,0,0,0,-1097,-1095]} 1. Nf3 {[%emt 0:00:03]} d5 {[%emt 0:07:27]} 2. g3 {[%emt 0:00:09]} Nf6 {[%emt 0:01:26]} 3. Bg2 {[%emt 0:00:07]} g6 {[%emt 0:00:50]} 4. c4 {[%emt 0:00:39]} dxc4 {[%emt 0:00:09]} 5. Qa4+ {[%emt 0:01:18]} Nbd7 {[%emt 0:00:05]} 6. Qxc4 {[%emt 0:00:58]} Bg7 {[%emt 0:00:07]} 7. d4 {[%emt 0:01:05]} Nb6 {[%emt 0:01:07]} 8. Qb3 {[%emt 0:00:10]} Be6 {[%emt 0:01:43]} 9. Qd1 {[%emt 0:00:07]} c5 {[%emt 0:04:19]} 10. Nc3 {[%emt 0:01:50]} Nfd5 {[%emt 0:00:41]} 11. O-O {[%emt 0:07:19]} cxd4 {[%emt 0:04:41]} 12. Nxd4 {[%emt 0:05:28]} Nxc3 {[%emt 0:00:07]} 13. bxc3 {[%emt 0:00:04]} Bd5 {[%emt 0:00:15]} 14. e4 {[%emt 0:00:06]} Bc4 {[%emt 0:00:02]} 15. Re1 {[%emt 0:00:05]} e5 {[%emt 0:03:02]} 16. Nc2 {[%emt 0:10:59]} O-O {[%emt 0:09:13]} 17. Ne3 {[%emt 0:00:04]} Qxd1 {[%emt 0:00:43]} 18. Rxd1 {[%emt 0:00:07]} Rfd8 {[%emt 0:00:16]} 19. Rxd8+ {[%emt 0:00:50]} Rxd8 {[%emt 0:00:04]} 20. a4 {[%emt 0:00:28]} Be6 {[%emt 0:02:05]} 21. a5 {[%emt 0:03:23]} Nc4 {[%emt 0:00:25]} 22. Nd5 {[%emt 0:01:29]} f5 {[%emt 0:14:23]} 23. Bg5 {[%emt 0:34:41]} Rd7 {[%emt 0:00:45]} 24. Nf6+ {[%emt 0:02:13]} Bxf6 {[%emt 0:01:00]} 25. Bxf6 {[%emt 0:00:02]} Kf7 {[%emt 0:00:54]} 26. Bg5 {[%emt 0:00:02]} Nxa5 {[%emt 0:05:24]} 27. exf5 {[%emt 0:00:03]} gxf5 {[%emt 0:00:30]} (27... Bxf5 $5 28. f4 (28. Rxa5 Rd1+ 29. Bf1 Bh3) 28... b6 $15) 28. f4 {[%emt 0:01:07]} (28. Rxa5 $11 Rd1+ 29. Bf1) 28... Nb3 $17 {[%emt 0:01:21]} 29. Rxa7 {[%emt 0:03:28]} e4 {[%emt 0:00:10]} 30. Bf1 {[%emt 0:01:44]} (30. h3 $142) 30... Nd2 {[%emt 0:07:58]} ({Black should try} 30... h6 $1 $17 {[%cal Rh6g5]} 31. Bh4 (31. Bxh6 $2 e3 $19) 31... e3) 31. Bb5 {[%emt 0:04:31]} Nf3+ {[%emt 0:00:05]} 32. Kf2 {[%emt 0:00:11]} Rd2+ {[%emt 0:00:07]} 33. Ke3 {[%emt 0:00:08]} Bd5 $1 {[%emt 0:01:27]} 34. Be2 {[%emt 0:08:14]} ({Better is} 34. h3 $15) 34... Rc2 $19 {[%emt 0:03:18]} 35. Ra3 {[%emt 0:00:04]} Nxh2 {[%emt 0:01:34]} 36. Ra5 {[%emt 0:05:50]} Ke6 {[%emt 0:00:47]} (36... Rxc3+ 37. Kd2 Rxg3 38. Rxd5 $18) 37. Rc5 {[%emt 0:03:55]} Kd6 {[%emt 0:02:27]} (37... Nf3 $1 $19 {White must now prevent ...Kd6.} 38. Rc8 Bc6 39. Bc4+ Kd7 40. Rd8+ Kc7) 38. Rc8 {[%emt 0:00:28]} (38. Be7+ $1 $15 Kxe7 39. Rxd5) 38... Be6 $1 $19 {[%emt 0:04:49]} 39. Rd8+ {[%emt 0:01:04]} Kc6 {[%emt 0:00:08]} 40. Bf6 {[%emt 0:01:12]} (40. Be7 $17 Kc7 (40... Rxc3+ 41. Kd2 $16) 41. Bf6) 40... b5 $19 {[%emt 0:00:45]} 41. Re8 $2 {[%emt 0:13:44]} (41. Rd2 Rxd2 42. Kxd2) 41... Bc4 $19 {[%emt 0:04:13]} 42. Bh5 {[%emt 0:03:11]} Nf1+ {[%emt 0:00:04]} 43. Kd4 {[%emt 0:00:04]} Nxg3 {[%emt 0:01:49]} 44. Rc8+ {[%emt 0:00:26]} Kb7 {[%emt 0:00:50]} 45. Rh8 {[%emt 0:00:08]} Nxh5 {[%emt 0:03:54]} 46. Rxh7+ {[%emt 0:00:06]} Kc6 {[%emt 0:00:01]} 47. Rxh5 {[%emt 0:00:07]} Rd2+ {[%emt 0:00:03]} 48. Ke5 {[%emt 0:01:18]} Rd5+ {[%emt 0:01:15]} 49. Ke6 {[%emt 0:00:03]} e3 {[%emt 0:00:04]} 50. Bh4 {[%emt 0:01:15]} e2 {[%emt 0:00:22]} 51. Rxf5 {[%emt 0:01:03]} Rd1+ {[%emt 0:00:03]} 52. Kf6 {[%emt 0:05:51]} e1=Q {[%emt 0:00:06]} 53. Bg3 {[#]} Qf2 $2 (53... Rd6+ $3 {[%mdl 512]} 54. Kg7 Qe7+ (54... Qxg3+ {gets mated.} 55. Rg5 Rd7+ 56. Kg6 Bd3+ 57. f5 Qd6+ 58. Kh5 Rh7+ 59. Kg4 Be2#) 55. Rf7 Qxf7+ 56. Kh8 Rh6#) 54. Bxf2 $14 {[%emt 0:00:34]} Re1 $2 {[%emt 0:00:33][%mdl 8192]} (54... Rd5 $14) 55. Rh5 $2 {[%emt 0:00:41]} (55. Bxe1 Kd6 56. Re5 Bg8 57. f5 (57. Rxb5 Bh7 $18) 57... Bd5 58. Rxd5+ Kxd5 59. Kg6 Ke4 60. f6) 55... Re3 $2 {[%emt 0:00:10][%mdl 8192]} (55... Re4 $16) 56. f5 $2 {[%emt 0:00:03]} (56. Bxe3 {mates} Kd7 57. Rc5 (57. Rh7+ Kd6 $18) 57... Be6 58. f5 (58. Rxb5 Bg4 59. Rc5 Bf3 60. f5 Be4 61. Bf4 Bd3 62. Rc7+ Ke8) 58... Bc4 59. Kg7 Be6 60. fxe6+ Kxe6 61. Rxb5) 56... Rxc3 $11 {[%emt 0:00:03]} 57. Ke5 {[%emt 0:00:05]} Rd3 {[%emt 0:00:42]} 58. Rh8 {[%emt 0:00:35]} Rd5+ {[%emt 0:00:16]} 59. Kf4 {[%emt 0:00:19]} Rd7 {[%emt 0:01:01]} 60. f6 {[%emt 0:00:37]} b4 {[%emt 0:00:03]} 61. Rb8 {[%emt 0:01:08]} b3 {[%emt 0:00:13]} 62. Ke5 {[%emt 0:00:11]} Rb7 {[%emt 0:00:11]} 63. Rc8+ {[%emt 0:00:47]} Kb5 {[%emt 0:00:10]} 64. Kd4 $2 {[%emt 0:00:05][%mdl 8192] [#]} (64. Bd4 $11) 64... b2 $1 {[%emt 0:00:18]} 0-1

[Event "XII Cracow ICC-A 2024"]
[Site "Krakow"]
[Date "2024.06.25"]
[Round "5.12"]
[White "Kutowski, Marcel"]
[Black "Nguyen, Piotr"]
[Result "1/2-1/2"]
[ECO "B32"]
[WhiteElo "2230"]
[BlackElo "2426"]
[Annotator "RC"]
[PlyCount "131"]
[EventDate "2024.06.20"]
[EventType "swiss"]
[EventCountry "POL"]
[SourceTitle "playchess.com"]
[Source "ChessBase"]
[SourceQuality "1"]
[TimeControl "40/5400+30:1800+30"]

1. e4 {[%emt 0:00:03]} c5 {[%emt 0:00:05]} 2. Nf3 {[%emt 0:00:10]} a6 {[%emt 0:00:06]} 3. c4 {[%emt 0:00:53]} Nc6 {[%emt 0:00:09]} 4. d4 {[%emt 0:00:55]} cxd4 {[%emt 0:00:07]} 5. Nxd4 {[%emt 0:00:34]} e5 {[%emt 0:00:22]} 6. Nc2 {[%emt 0:01:08]} Bc5 {[%emt 0:01:03]} 7. Be3 {[%emt 0:08:16]} Bxe3 {[%emt 0:17:42]} 8. Nxe3 {[%emt 0:00:21]} d6 {[%emt 0:00:30]} 9. Nc3 {[%emt 0:01:18]} Nge7 {[%emt 0:01:17]} 10. Bd3 {[%emt 0:02:25]} O-O {[%emt 0:00:15]} 11. O-O {[%emt 0:02:37]} Nd4 {[%emt 0:16:08]} 12. Kh1 {[%emt 0:09:43]} Bd7 {[%emt 0:03:47]} 13. b4 {[%emt 0:05:27]} Rc8 {[%emt 0:08:08]} 14. Ne2 {[%emt 0:07:45]} Ne6 {[%emt 0:06:22]} 15. Bc2 {[%emt 0:06:31]} Bc6 {[%emt 0:05:09]} 16. a4 {[%emt 0:11:48]} b5 {[%emt 0:06:41]} 17. cxb5 {[%emt 0:05:46]} axb5 {[%emt 0:00:04]} 18. axb5 {[%emt 0:00:13]} Bxb5 {[%emt 0:00:52]} 19. Bd3 {[%emt 0:00:47]} Bc6 {[%emt 0:03:43]} 20. Rc1 {[%emt 0:11:00]} Rb8 {[%emt 0:04:32]} 21. Qd2 {[%emt 0:02:26]} Qb6 {[%emt 0:02:54]} 22. Rb1 {[%emt 0:01:22]} Rbd8 {[%emt 0:02:33]} 23. Nc4 {[%emt 0:03:37]} Qb8 {[%emt 0:00:15]} 24. b5 {[%emt 0:00:56]} Ba8 {[%emt 0:00:29]} 25. Qb4 {[%emt 0:01:20]} Nc5 {[%emt 0:04:35]} 26. Bc2 {[%emt 0:02:26]} Nxe4 {[%emt 0:04:07]} 27. Nxe5 {[%emt 0:02:58]} Nf6 {[%emt 0:03:47]} 28. Nc4 {[%emt 0:01:51]} Rfe8 {[%emt 0:02:04]} 29. Nd4 {[%emt 0:01:56]} Ng4 {[%emt 0:01:31]} 30. Nd2 {[%emt 0:02:33]} Nd5 {[%emt 0:02:39]} 31. Qa3 {[%emt 0:02:11]} Qb6 {[%emt 0:00:31]} 32. Qd3 {[%emt 0:01:31]} g6 {[%emt 0:00:48]} 33. N2f3 {[%emt 0:01:13]} Rc8 {[%emt 0:02:24]} 34. Bb3 {[%emt 0:00:28]} Nc3 {[%emt 0:00:11]} 35. Rbc1 {[%emt 0:01:13]} Ne4 {[%emt 0:00:18]} 36. Rc2 {[%emt 0:01:41]} Nc5 {[%emt 0:01:37]} 37. Qc4 {[%emt 0:00:48]} Nxb3 {[%emt 0:00:19]} 38. Qxb3 {[%emt 0:00:38]} Rxc2 {[%emt 0:00:16]} 39. Qxc2 {[%emt 0:00:37]} Bxf3 {[%emt 0:00:12]} 40. Nxf3 {[%emt 0:00:24]} Qxb5 {[%emt 0:00:15]} 41. Kg1 {[%emt 0:30:23]} Nf6 {[%emt 0:08:36]} 42. h3 {[%emt 0:00:00]} d5 {[%emt 0:10:52]} 43. Rd1 {[%emt 0:00:00]} Ra8 {[%emt 0:01:55]} 44. Qc3 {[%emt 0:00:00]} Qb6 {[%emt 0:00:07]} 45. Qc2 {[%emt 0:00:00]} Ra5 {[%emt 0:02:19]} 46. Ne5 {[%emt 0:00:00]} Rc5 {[%emt 0:02:29]} 47. Qa4 {[%emt 0:00:00]} Rb5 {[%emt 0:01:10]} 48. Qf4 {[%emt 0:00:00]} Rb1 {[%emt 0:02:28]} 49. Rxb1 Qxb1+ {[%emt 0:00:03]} 50. Kh2 {[%emt 0:00:00]} Kg7 {[%emt 0:00:09]} 51. Nf3 {[%emt 0:00:00]} Qe4 {[%emt 0:01:14]} 52. Qd6 {[%emt 0:00:00]} h6 {[%emt 0:01:39]} 53. Qb6 {[%emt 0:00:00]} g5 {[%emt 0:00:59]} 54. Qb2 {[%emt 0:00:00]} h5 {[%emt 0:01:28]} 55. Kg1 {[%emt 0:04:23]} g4 {[%emt 0:00:21]} 56. hxg4 {[%emt 0:00:05]} hxg4 {[%emt 0:00:04]} 57. Nh4 {[%emt 0:01:17]} g3 {[%emt 0:02:36]} 58. fxg3 {[%emt 0:00:39]} d4 {[%emt 0:00:08]} 59. Nf3 {[%emt 0:01:09]} d3 {[%emt 0:00:04]} 60. Qc3 {[%emt 0:00:33]} Qe3+ {[%emt 0:01:49]} 61. Kh1 {[%emt 0:01:19]} Qh6+ {[%emt 0:00:43]} 62. Kg1 {[%emt 0:00:10]} Qe3+ {[%emt 0:00:21]} 63. Kh1 {[%emt 0:00:16]} Qh6+ {[%emt 0:00:53]} 64. Kg1 {[%emt 0:00:05]} Qg6 {[%emt 0:00:34]} 65. Ne5 {[%emt 0:02:02]} Qxg3 {[%emt 0:00:39]} 66. Nxd3 {[%emt 0:00:16]} 1/2-1/2

[Event "XII Cracow ICC-A 2024"]
[Site "Krakow"]
[Date "2024.06.25"]
[Round "5.13"]
[White "Brzezina, Piotr"]
[Black "Gorkiewicz, Mateusz"]
[Result "1/2-1/2"]
[ECO "C80"]
[WhiteElo "2298"]
[BlackElo "2223"]
[Annotator "RC"]
[PlyCount "46"]
[EventDate "2024.06.20"]
[EventType "swiss"]
[EventCountry "POL"]
[SourceTitle "playchess.com"]
[Source "ChessBase"]
[SourceQuality "1"]
[TimeControl "40/5400+30:1800+30"]

1. e4 {[%emt 0:00:16]} e5 {[%emt 0:03:14]} 2. Nf3 {[%emt 0:01:14]} Nc6 {[%emt 0:00:09]} 3. Bb5 {[%emt 0:00:02]} a6 {[%emt 0:00:11]} 4. Ba4 {[%emt 0:01:39]} Nf6 {[%emt 0:00:16]} 5. O-O {[%emt 0:00:12]} Nxe4 {[%emt 0:00:15]} 6. d4 {[%emt 0:00:23]} b5 {[%emt 0:00:16]} 7. Bb3 {[%emt 0:00:05]} d5 {[%emt 0:00:17]} 8. dxe5 {[%emt 0:00:08]} Be6 {[%emt 0:00:10]} 9. Nbd2 {[%emt 0:00:52]} Nc5 {[%emt 0:00:47]} 10. c3 {[%emt 0:00:13]} d4 {[%emt 0:00:51]} 11. Bxe6 {[%emt 0:00:17]} Nxe6 {[%emt 0:00:10]} 12. cxd4 {[%emt 0:00:08]} Ncxd4 {[%emt 0:00:13]} 13. a4 {[%emt 0:00:18]} Bb4 {[%emt 0:00:56]} 14. axb5 {[%emt 0:01:08]} Nxb5 {[%emt 0:00:24]} 15. Qa4 {[%emt 0:00:10]} c5 {[%emt 0:00:23]} 16. Nc4 {[%emt 0:00:15]} O-O {[%emt 0:00:23]} 17. Be3 {[%emt 0:00:47]} Rb8 {[%emt 0:01:25]} 18. Rfd1 {[%emt 0:02:42]} Nbd4 {[%emt 0:01:21]} 19. Bxd4 {[%emt 0:04:48]} cxd4 {[%emt 0:01:51]} 20. Qxa6 {[%emt 0:09:04]} Qd5 {[%emt 0:04:34]} 21. Nb6 {[%emt 0:33:18]} Qc6 {[%emt 0:17:28]} 22. Nc4 {[%emt 0:00:10]} Qd5 {[%emt 0:03:44]} 23. Nb6 {[%emt 0:02:51]} Qc6 {[%emt 0:03:32]} 1/2-1/2

[Event "XII Cracow ICC-A 2024"]
[Site "Krakow"]
[Date "2024.06.25"]
[Round "5.14"]
[White "Gierulski, Kamil"]
[Black "Zwardon, Vojtech"]
[Result "1-0"]
[ECO "B31"]
[WhiteElo "2242"]
[BlackElo "2458"]
[Annotator "TA"]
[PlyCount "133"]
[EventDate "2024.06.20"]
[EventType "swiss"]
[EventCountry "POL"]
[SourceTitle "playchess.com"]
[Source "ChessBase"]
[SourceQuality "1"]
[TimeControl "40/5400+30:1800+30"]

{[%evp 38,133,0,-14,-11,-43,-12,-20,-13,-6,6,0,56,14,48,0,0,0,5,6,8,0,25,0,8,0,0,0,74,18,13,0,117,118,135,-31,-31,-41,-43,-56,-58,-80,-46,-50,-62,-125,-31,-131,-71,-90,-68,-91,0,0,0,0,22,42,20,13,29980,29981,29980,29979,29986,29987,29985,5197,29983,377,377,377,359,359,1120,1125,1124,1077,1048,970,4141,4141,4141,4141,4141,4141,4137,4133,2064,1770,1268,1178,29974,29975,29982,29983,29982,29981]} 1. e4 {[%emt 0:00:02]} c5 {[%emt 0:02:06]} 2. Nf3 {[%emt 0:00:04]} Nc6 {[%emt 0:00:03]} 3. Bb5 {[%emt 0:00:04]} g6 {[%emt 0:00:02]} 4. O-O {[%emt 0:00:06]} Bg7 {[%emt 0:00:02]} 5. c3 {[%emt 0:00:06]} Nf6 {[%emt 0:00:02]} 6. Re1 {[%emt 0:00:05]} O-O {[%emt 0:00:02]} 7. d4 {[%emt 0:00:04]} d5 {[%emt 0:00:01]} 8. e5 {[%emt 0:00:05]} Ne4 {[%emt 0:00:01]} 9. Bxc6 {[%emt 0:00:05]} bxc6 {[%emt 0:00:03]} 10. Be3 {[%emt 0:00:05]} Qb6 {[%emt 0:00:03]} 11. Qc1 {[%emt 0:00:05]} cxd4 {[%emt 0:00:05]} 12. cxd4 {[%emt 0:00:04]} a5 {[%emt 0:00:13]} 13. Nc3 {[%emt 0:00:21]} Nxc3 {[%emt 0:00:02]} 14. Qxc3 {[%emt 0:00:06]} Bg4 {[%emt 0:00:02]} 15. Nd2 {[%emt 0:00:18]} Rfb8 {[%emt 0:00:02]} 16. b3 {[%emt 0:00:18]} Bf5 {[%emt 0:00:01]} 17. h3 {[%emt 0:00:20]} h5 {[%emt 0:01:20]} 18. Nf3 {[%emt 0:07:30]} a4 {[%emt 0:01:55]} 19. Nh4 {[%emt 0:00:55]} Bd7 {[%emt 0:00:39]} 20. Reb1 {[%emt 0:03:39]} Qb4 {[%emt 0:05:10]} 21. Qc2 {[%emt 0:03:55]} axb3 {[%emt 0:03:20]} 22. axb3 {[%emt 0:12:51]} Rxa1 {[%emt 0:00:32]} 23. Rxa1 {[%emt 0:00:02]} Be8 {[%emt 0:00:41]} 24. Nf3 {[%emt 0:12:37]} e6 {[%emt 0:02:16]} ({Black should try} 24... Qb7 $11) 25. Rb1 {[%emt 0:02:24]} (25. g4 $5) 25... Ra8 {[%emt 0:01:30]} 26. Bg5 {[%emt 0:03:35]} (26. g4 $14) 26... Bf8 $11 {[%emt 0:00:29]} 27. Be3 {[%emt 0:05:02]} Ra3 {[%emt 0:02:04]} 28. Kh2 {[%emt 0:03:19]} Qb8 {[%emt 0:01:32]} 29. Kg1 {[%emt 0:06:36]} Qa8 {[%emt 0:00:08]} 30. Kh2 {[%emt 0:00:36]} Bd7 {[%emt 0:00:33]} 31. g4 {[%emt 0:02:26]} hxg4 {[%emt 0:00:09]} 32. hxg4 {[%emt 0:00:01]} Ra2 {[%emt 0:00:30] [#]} (32... c5 $11) 33. Qd1 {[%emt 0:00:42]} (33. Qc1 $1 $16) 33... c5 $1 $11 {[%emt 0:04:14]} 34. Ng5 {[%emt 0:04:49]} Bh6 {[%emt 0:05:47]} (34... Be7 $11) 35. Qf3 $16 {[%emt 0:00:15]} Qf8 {[%emt 0:00:08] [#]} (35... Bxg5 36. Bxg5 f5 37. exf6 $18 (37. dxc5 fxg4 38. Qf6 Qf8 $16)) 36. Rd1 $2 {[%emt 0:04:57]} (36. dxc5 $6 d4 37. Bc1 Rc2 $11) (36. Rh1 $1 $16 cxd4 37. Nh7 dxe3 (37... Kxh7 38. Bxh6 Qxh6+ 39. Kg3 $16) 38. Nf6+ (38. Nxf8 Bb5 $17) 38... Kg7 39. Kg3) 36... cxd4 $15 {[%emt 0:03:24]} 37. Rxd4 {[%emt 0:00:07]} Qe7 {[%emt 0:00:19]} 38. Nh3 {[%emt 0:04:39]} Bg7 {[%emt 0:00:06]} 39. Qg3 {[%emt 0:03:36]} Bc6 {[%emt 0:01:11]} 40. Ng5 {[%emt 0:03:30]} Qc7 {[%emt 0:00:35]} 41. Nf3 {[%emt 0:33:41]} ({Better is} 41. Bf4 $1 $15) 41... Bb5 {[%emt 0:32:05]} (41... Rb2 $17 42. Rb4 Bf8) 42. Rd2 {[%emt 0:04:03]} (42. Rd1 $15) 42... Ra1 {[%emt 0:01:16]} (42... Rxd2 $142 43. Bxd2 Be2) 43. Bd4 $17 {[%emt 0:00:31]} Rb1 {[%emt 0:01:10]} 44. Ra2 {[%emt 0:02:28]} Qc1 {[%emt 0:08:07]} (44... Qd8 $17) 45. Ra8+ $11 {[%emt 0:00:12]} Bf8 {[%emt 0:00:02]} 46. Ng1 {[%emt 0:01:04]} Kg7 {[%emt 0:02:03]} 47. Be3 $1 {[%emt 0:01:19]} Qf1 $1 {[%emt 0:20:28]} (47... Rxb3 $2 48. Bxc1 Rxg3 49. Kxg3 $18) 48. Bg5 {[%emt 0:02:07]} ({Don't blunder} 48. Bh6+ $2 Kxh6 49. Rxf8 Kg7 $19) 48... Rb2 $2 {[%emt 0:01:00][%mdl 8192]} (48... Ra1 $11 49. Rxa1 Qxa1) 49. Nh3 {[%emt 0:04:58]} Rb1 {[%emt 0:00:46]} 50. Qf3 {[%emt 0:02:50]} f5 {[%emt 0:01:19]} 51. exf6+ {[%emt 0:00:00]} Kf7 {[%emt 0:00:00]} 52. Rxf8+ {[%emt 0:00:00]} Kxf8 {[%emt 0:00:00]} 53. f7 $2 {[%emt 0:00:00]} (53. Qc3 {mates} Qh1+ 54. Kg3 Rg1+ 55. Kh4 (55. Nxg1 Qxg1+ 56. Kf3 Qh1+ 57. Kf4 Be8 $16) 55... Rxg4+ 56. Kxg4 Qe4+ 57. Nf4 Bd7 58. Qc5+ (58. Qe5 Qf5+ 59. Kh4 Qxe5 60. Nxg6+ Kg8 61. Nxe5 Be8 62. b4 d4) 58... Kg8 59. f7+ Kxf7 60. Qe7+ Kg8 61. Kg3 (61. Qxd7 Qf5+ 62. Kh4 e5 $18) (61. Qd8+ Kf7 62. Qxd7+ Kg8 63. Qe8+ Kg7 64. Kg3 Qf5 65. Nxe6+ Qxe6 66. Qxe6 d4 67. Bf6+ Kf8 68. Qe7+ Kg8 69. Qg7#)) 53... Qh1+ $18 {[%emt 0:00:00]} 54. Qxh1 {[%emt 0:00:00]} Rxh1+ {[%emt 0:00:00]} 55. Kxh1 {[%emt 0:00:00]} Be2 $2 {[%emt 0:00:00]} (55... Kxf7 56. f4 Kg8) 56. Bf6 $18 {[%emt 0:00:00]} Kxf7 {[%emt 0:00:00]} 57. g5 {[%emt 0:00:00]} Bd3 {[%emt 0:00:00]} 58. Kg2 {[%emt 0:00:00]} Ke8 {[%emt 0:00:00]} 59. Kf3 {[%emt 0:00:00]} Kd7 {[%emt 0:00:00]} 60. Ke3 {[%emt 0:00:00]} Bc2 {[%emt 0:00:00]} 61. b4 {[%emt 0:00:00]} Kc6 {[%emt 0:00:00]} 62. Kd4 {[%emt 0:00:00]} Kb5 {[%emt 0:00:00]} 63. Kc3 {[%emt 0:00:00]} Bf5 {[%emt 0:00:00]} 64. Nf4 {[%emt 0:00:00]} Ka4 {[%emt 0:00:00]} 65. Ne2 {[%emt 0:00:00]} Bg4 {[%emt 0:00:00]} 66. Nd4 {[%emt 0:00:00]} Bh3 {[%emt 0:00:00]} 67. b5 {[%emt 0:00:00]} 1-0

[Event "XII Cracow ICC-A 2024"]
[Site "Krakow"]
[Date "2024.06.25"]
[Round "5.15"]
[White "Fus, Jakub"]
[Black "Rudolf, Michal"]
[Result "1/2-1/2"]
[ECO "B12"]
[WhiteElo "2455"]
[BlackElo "2287"]
[Annotator "RC"]
[PlyCount "55"]
[EventDate "2024.06.20"]
[EventType "swiss"]
[EventCountry "POL"]
[SourceTitle "playchess.com"]
[Source "ChessBase"]
[SourceQuality "1"]
[TimeControl "40/5400+30:1800+30"]

1. e4 c6 2. d4 d5 3. e5 Bf5 4. Nf3 e6 5. Be2 Ne7 6. O-O c5 7. Be3 Nec6 8. c3 Nd7 9. a3 a5 10. a4 Be7 11. Na3 O-O 12. Ne1 cxd4 13. cxd4 f6 14. exf6 Bxf6 15. Nb5 e5 16. dxe5 Ndxe5 17. Bc5 Be7 18. Bxe7 Nxe7 19. Nf3 N5c6 20. Ra3 Qb6 21. Re3 Rad8 22. Nfd4 Nxd4 23. Qxd4 Qxd4 24. Nxd4 Nc6 25. Rd1 Nb4 26. Re7 Bd7 27. b3 Rfe8 28. Rxd7 1/2-1/2